[Event "ESCC-50 2022"]
[Site "Lublin"]
[Date "2022.07.12"]
[Round "8.10"]
[White "Chlewinski, Artur"]
[Black "Babijczuk, Wojciech"]
[Result "0-1"]
[ECO "B75"]
[WhiteElo "1417"]
[BlackElo "1436"]
[Annotator "NA"]
[PlyCount "80"]
[EventDate "2022.07.05"]
[EventType "swiss"]
[EventCountry "POL"]
[SourceTitle "playchess.com"]
[Source "ChessBase"]
[SourceQuality "1"]
[TimeControl "40/5400+30:1800+30"]

1. e4 {[%emt 0:00:02]} c5 {[%emt 0:00:06]} 2. Nf3 {[%emt 0:00:06]} d6 {[%emt 0:00:12]} 3. d4 {[%emt 0:00:07]} cxd4 {[%emt 0:00:04]} 4. Nxd4 {[%emt 0:00:07]} g6 {[%emt 0:00:15]} 5. Be3 {[%emt 0:00:45]} Bg7 {[%emt 0:00:06]} 6. Nc3 {[%emt 0:00:18]} Nf6 {[%emt 0:00:06]} 7. f3 {[%emt 0:00:10]} a6 {[%emt 0:00:05]} 8. Qd2 {[%emt 0:01:04]} Bd7 {[%emt 0:00:24]} 9. O-O-O {[%emt 0:02:21]} b5 {[%emt 0:00:09]} 10. Bh6 {[%emt 0:05:25]} O-O {[%emt 0:01:09]} 11. Bxg7 {[%emt 0:00:07]} Kxg7 {[%emt 0:00:02]} 12. g4 {[%emt 0:01:35]} Nc6 {[%emt 0:00:26]} 13. Nxc6 {[%emt 0:05:57]} Bxc6 {[%emt 0:00:02]} 14. h4 {[%emt 0:00:35]} b4 {[%emt 0:02:43]} 15. Nd5 {[%emt 0:03:40]} Bxd5 {[%emt 0:06:31]} 16. exd5 {[%emt 0:00:13]} Qa5 {[%emt 0:01:44]} 17. Kb1 {[%emt 0:00:58]} Rac8 {[%emt 0:01:13]} 18. h5 {[%emt 0:06:00]} Ng8 {[%emt 0:04:29]} 19. Qd4+ {[%emt 0:12:34]} f6 {[%emt 0:00:51]} 20. g5 {[%emt 0:09:17]} Qc5 {[%emt 0:00:22]} 21. gxf6+ {[%emt 0:07:09]} Rxf6 {[%emt 0:00:52]} 22. Qxc5 {[%emt 0:03:11]} Rxc5 {[%emt 0:00:02]} 23. hxg6 {[%emt 0:00:51]} hxg6 {[%emt 0:01:01]} 24. Bxa6 {[%emt 0:03:35]} Rxf3 {[%emt 0:02:16]} 25. b3 {[%emt 0:00:17]} Nf6 {[%emt 0:02:02]} 26. Kb2 {[%emt 0:04:42]} Rf2 {[%emt 0:01:10]} 27. Bc4 {[%emt 0:00:31]} Ra5 {[%emt 0:02:33]} 28. Rd4 {[%emt 0:02:05]} Rg2 {[%emt 0:02:46]} 29. Rhd1 {[%emt 0:02:45]} Rc5 {[%emt 0:00:48]} 30. R1d2 {[%emt 0:01:44]} Rxd2 {[%emt 0:00:13]} 31. Rxd2 {[%emt 0:00:02]} Rc7 {[%emt 0:07:18]} 32. Rd4 {[%emt 0:00:20]} g5 {[%emt 0:01:09]} 33. c3 {[%emt 0:00:54]} bxc3+ {[%emt 0:00:26]} 34. Kc2 {[%emt 0:02:48]} Kh6 {[%emt 0:00:51]} 35. a4 {[%emt 0:02:02]} g4 {[%emt 0:00:23]} 36. a5 {[%emt 0:02:13]} g3 {[%emt 0:00:18]} 37. a6 {[%emt 0:03:05]} Kg5 {[%emt 0:00:06]} 38. Be2 {[%emt 0:01:56]} g2 {[%emt 0:05:32]} 39. Rd1 {[%emt 0:01:15]} Kf4 {[%emt 0:01:27]} 40. b4 {[%emt 0:00:00]} Nxd5 {[%emt 0:00:00]} 0-1

[Event "ESCC-50 2022"]
[Site "Lublin"]
[Date "2022.07.13"]
[Round "9.2"]
[White "Lasinskas, Povilas"]
[Black "Tereladze, Sopiko"]
[Result "1/2-1/2"]
[ECO "E20"]
[WhiteElo "2096"]
[BlackElo "2141"]
[Annotator "ChessBase"]
[PlyCount "52"]
[EventDate "2022.07.05"]
[EventType "swiss"]
[EventCountry "POL"]
[SourceTitle "playchess.com"]
[Source "ChessBase"]
[SourceQuality "1"]
[TimeControl "40/5400+30:1800+30"]

1. d4 {[%emt 0:00:04]} Nf6 {[%emt 0:00:10]} 2. c4 {[%emt 0:00:06]} e6 {[%emt 0:00:08]} 3. Nc3 {[%emt 0:00:07]} Bb4 {[%emt 0:00:31]} 4. f3 {[%emt 0:00:10]} c5 {[%emt 0:00:40]} 5. d5 {[%emt 0:00:09]} d6 {[%emt 0:00:57]} 6. e4 {[%emt 0:01:18]} b5 {[%emt 0:00:23]} 7. Bd3 {[%emt 0:02:44]} Nbd7 {[%emt 0:22:52]} 8. Nge2 {[%emt 0:08:26]} bxc4 {[%emt 0:01:06]} 9. Bxc4 {[%emt 0:00:11]} exd5 {[%emt 0:00:52]} 10. Bxd5 {[%emt 0:00:23]} Nxd5 {[%emt 0:00:37]} 11. Qxd5 {[%emt 0:00:10]} Nb6 {[%emt 0:00:37]} 12. Qh5 {[%emt 0:01:19]} Ba6 {[%emt 0:03:23]} 13. Bg5 {[%emt 0:02:35]} Qd7 {[%emt 0:01:15]} 14. Kf2 {[%emt 0:03:56]} O-O {[%emt 0:07:50]} 15. Rad1 {[%emt 0:03:18]} Bxc3 {[%emt 0:24:09]} 16. Nxc3 {[%emt 0:00:31]} Nc4 {[%emt 0:00:19]} 17. Bf4 {[%emt 0:07:43]} Nxb2 {[%emt 0:02:59]} 18. Bxd6 {[%emt 0:08:06]} Nxd1+ {[%emt 0:02:38]} 19. Rxd1 {[%emt 0:00:06]} Rfd8 {[%emt 0:06:41]} 20. Qxc5 {[%emt 0:09:06]} Qe6 {[%emt 0:04:46]} 21. Rd5 {[%emt 0:09:51]} Bb7 {[%emt 0:01:56]} 22. Bc7 {[%emt 0:09:43]} Bxd5 {[%emt 0:02:38]} 23. exd5 {[%emt 0:00:56]} Qc8 {[%emt 0:00:23]} 24. d6 {[%emt 0:00:13]} Re8 {[%emt 0:02:05]} 25. Nd5 {[%emt 0:05:48]} Qe6 {[%emt 0:03:09]} 26. Ne7+ {[%emt 0:02:06]} Kh8 {[%emt 0:02:45]} 1/2-1/2

[Event "ESCC-50 2022"]
[Site "Lublin"]
[Date "2022.07.13"]
[Round "9.3"]
[White "Leszner, Liliana"]
[Black "Klimaszewski, Dariusz"]
[Result "0-1"]
[ECO "B24"]
[WhiteElo "1872"]
[BlackElo "2152"]
[Annotator "ChessBase"]
[PlyCount "84"]
[EventDate "2022.07.05"]
[EventType "swiss"]
[EventCountry "POL"]
[SourceTitle "playchess.com"]
[Source "ChessBase"]
[SourceQuality "1"]
[TimeControl "40/5400+30:1800+30"]

1. e4 {[%emt 0:00:03]} c5 {[%emt 0:00:07]} 2. Nc3 {[%emt 0:00:05]} Nc6 {[%emt 0:00:19]} 3. g3 {[%emt 0:00:07]} Rb8 {[%emt 0:00:18]} 4. Nf3 {[%emt 0:00:37]} g6 {[%emt 0:00:14]} 5. Bg2 {[%emt 0:01:32]} b5 {[%emt 0:00:21]} 6. O-O {[%emt 0:00:54]} Bg7 {[%emt 0:00:16]} 7. a3 {[%emt 0:02:11]} e6 {[%emt 0:06:05]} 8. d3 {[%emt 0:02:03]} Nge7 {[%emt 0:01:06]} 9. Be3 {[%emt 0:00:51]} Nd4 {[%emt 0:01:07]} 10. e5 {[%emt 0:05:29]} Nec6 {[%emt 0:04:46]} 11. Ne4 {[%emt 0:03:27]} O-O {[%emt 0:11:33]} 12. Bg5 {[%emt 0:03:36]} Qc7 {[%emt 0:00:59]} 13. Nxd4 {[%emt 0:00:45]} Nxd4 {[%emt 0:07:34]} 14. Be7 {[%emt 0:00:33]} Bxe5 {[%emt 0:00:20]} 15. Bxf8 {[%emt 0:00:27]} Kxf8 {[%emt 0:00:08]} 16. f4 {[%emt 0:00:54]} Bg7 {[%emt 0:00:15]} 17. c3 {[%emt 0:01:46]} Nf5 {[%emt 0:00:13]} 18. Qe1 {[%emt 0:01:30]} d5 {[%emt 0:00:29]} 19. Ng5 {[%emt 0:00:48]} b4 {[%emt 0:01:14]} 20. Nxh7+ {[%emt 0:03:09]} Kg8 {[%emt 0:00:11]} 21. Ng5 {[%emt 0:00:07]} bxc3 {[%emt 0:03:54]} 22. bxc3 {[%emt 0:00:15]} Rb3 {[%emt 0:00:11]} 23. Rc1 {[%emt 0:03:14]} Rxa3 {[%emt 0:01:22]} 24. g4 {[%emt 0:01:28]} Ne7 {[%emt 0:01:19]} 25. Rf3 {[%emt 0:09:50]} d4 {[%emt 0:05:56]} 26. c4 {[%emt 0:10:20]} Bb7 {[%emt 0:01:10]} 27. Ne4 {[%emt 0:02:18]} a5 {[%emt 0:05:56]} 28. Rb1 {[%emt 0:01:33]} Bc6 {[%emt 0:01:25]} 29. Rh3 {[%emt 0:09:58]} a4 {[%emt 0:03:00]} 30. Qh4 {[%emt 0:03:23]} Bxe4 {[%emt 0:01:59]} 31. Bxe4 {[%emt 0:00:14]} Rb3 {[%emt 0:00:25]} 32. Rf1 {[%emt 0:01:52]} f5 {[%emt 0:02:25]} 33. gxf5 {[%emt 0:02:21]} exf5 {[%emt 0:00:29]} 34. Qh7+ {[%emt 0:03:20]} Kf8 {[%emt 0:00:12]} 35. Bd5 {[%emt 0:03:28]} a3 {[%emt 0:00:37]} 36. Rg3 {[%emt 0:03:37]} Qd6 {[%emt 0:00:54]} 37. Rg2 {[%emt 0:01:22]} Rb2 {[%emt 0:00:23]} 38. Re1 {[%emt 0:05:17]} Qxf4 {[%emt 0:03:13]} 39. Rxg6 {[%emt 0:01:09]} Qf2+ {[%emt 0:00:12]} 40. Kh1 {[%emt 0:00:00]} Qxe1+ {[%emt 0:00:00]} 41. Rg1 {[%emt 0:00:12]} Qxg1+ {[%emt 0:01:12]} 42. Kxg1 {[%emt 0:00:05]} a2 0-1

[Event "ESCC-50 2022"]
[Site "Lublin"]
[Date "2022.07.13"]
[Round "9.4"]
[White "Wielosz, Jaroslaw"]
[Black "Garabetyan, Arno"]
[Result "1/2-1/2"]
[ECO "E10"]
[WhiteElo "1891"]
[BlackElo "2056"]
[Annotator "ChessBase"]
[PlyCount "113"]
[EventDate "2022.07.05"]
[EventType "swiss"]
[EventCountry "POL"]
[SourceTitle "playchess.com"]
[Source "ChessBase"]
[SourceQuality "1"]
[TimeControl "40/5400+30:1800+30"]

1. d4 {[%emt 0:00:05]} Nf6 {[%emt 0:00:16]} 2. c4 {[%emt 0:00:10]} e6 {[%emt 0:00:22]} 3. Nf3 {[%emt 0:00:11]} d5 {[%emt 0:00:23]} 4. g3 {[%emt 0:00:16]} Bb4+ {[%emt 0:00:19]} 5. Bd2 {[%emt 0:00:13]} Be7 {[%emt 0:00:10]} 6. Bg2 {[%emt 0:00:23]} O-O {[%emt 0:00:17]} 7. Qc2 {[%emt 0:03:32]} c6 {[%emt 0:00:21]} 8. O-O {[%emt 0:00:44]} b6 {[%emt 0:00:11]} 9. b3 {[%emt 0:06:50]} a5 {[%emt 0:01:34]} 10. Nc3 {[%emt 0:07:17]} Ba6 {[%emt 0:00:31]} 11. cxd5 {[%emt 0:05:54]} cxd5 {[%emt 0:01:19]} 12. Ne5 {[%emt 0:04:10]} Nfd7 {[%emt 0:04:11]} 13. Nxd7 {[%emt 0:06:07]} Qxd7 {[%emt 0:08:16]} 14. Rfd1 {[%emt 0:07:58]} Nc6 {[%emt 0:00:28]} 15. Be3 {[%emt 0:01:57]} Rfc8 {[%emt 0:12:55]} 16. Qb2 {[%emt 0:02:20]} b5 {[%emt 0:01:21]} 17. Rac1 {[%emt 0:04:19]} Bd6 {[%emt 0:01:18]} 18. Bf4 {[%emt 0:02:05]} Bxf4 {[%emt 0:11:33]} 19. gxf4 {[%emt 0:00:07]} f5 {[%emt 0:03:27]} 20. e3 {[%emt 0:01:18]} Nd8 {[%emt 0:02:44]} 21. Nb1 {[%emt 0:05:08]} b4 {[%emt 0:02:17]} 22. Rxc8 {[%emt 0:03:40]} Rxc8 {[%emt 0:00:11]} 23. Rc1 {[%emt 0:00:17]} Nf7 {[%emt 0:01:03]} 24. Nd2 {[%emt 0:04:11]} Rxc1+ {[%emt 0:14:12]} 25. Qxc1 {[%emt 0:00:09]} Qc8 {[%emt 0:00:04]} 26. Qxc8+ {[%emt 0:02:11]} Bxc8 {[%emt 0:00:13]} 27. Bf1 {[%emt 0:00:08]} Kf8 {[%emt 0:01:56]} 28. Bd3 {[%emt 0:02:13]} Bd7 {[%emt 0:02:07]} 29. Kf1 {[%emt 0:05:17]} Ke7 {[%emt 0:02:39]} 30. Ke2 {[%emt 0:00:23]} h6 {[%emt 0:05:00]} 31. h4 {[%emt 0:04:50]} Kf6 {[%emt 0:02:08]} 32. Nf3 {[%emt 0:04:56]} Kg6 {[%emt 0:02:37]} 33. Kd2 {[%emt 0:00:16]} Be8 {[%emt 0:00:45]} 34. Be2 {[%emt 0:03:58]} Kf6 {[%emt 0:02:28]} 35. Bd3 {[%emt 0:04:36]} Kg6 {[%emt 0:01:18]} 36. Be2 {[%emt 0:01:18]} Kf6 {[%emt 0:01:25]} 37. Bd3 {[%emt 0:01:09]} Ke7 {[%emt 0:04:38]} 38. Ne5 {[%emt 0:02:18]} Nd6 {[%emt 0:00:03]} 39. Kc2 {[%emt 0:01:58]} Kd8 {[%emt 0:01:37]} 40. Kd2 {[%emt 0:00:00]} Kc7 {[%emt 0:00:00]} 41. Kc2 {[%emt 0:03:31]} Kd8 {[%emt 0:08:27]} 42. Kd2 {[%emt 0:00:48]} Ke7 {[%emt 0:01:40]} 43. Kc2 {[%emt 0:00:54]} Kf6 {[%emt 0:01:49]} 44. Kd2 {[%emt 0:00:27]} Nf7 {[%emt 0:00:25]} 45. Nxf7 {[%emt 0:02:17]} Kxf7 {[%emt 0:00:31]} 46. Be2 {[%emt 0:00:26]} Kf6 {[%emt 0:00:26]} 47. Ke1 {[%emt 0:01:29]} g5 {[%emt 0:02:05]} 48. hxg5+ {[%emt 0:00:38]} hxg5 {[%emt 0:00:01]} 49. fxg5+ {[%emt 0:00:43]} Kxg5 {[%emt 0:00:01]} 50. f4+ {[%emt 0:03:17]} Kh4 {[%emt 0:00:41]} 51. Ba6 {[%emt 0:00:50]} Bd7 {[%emt 0:01:41]} 52. Bb7 {[%emt 0:00:48]} Kg3 {[%emt 0:00:19]} 53. Ba6 {[%emt 0:00:46]} Kf3 {[%emt 0:00:27]} 54. Kd2 {[%emt 0:00:07]} Kf2 {[%emt 0:00:02]} 55. Be2 {[%emt 0:03:02]} Be8 {[%emt 0:04:51]} 56. Ba6 {[%emt 0:00:52]} Bd7 {[%emt 0:01:18]} 57. Bb7 {[%emt 0:00:49]} 1/2-1/2

[Event "ESCC-50 2022"]
[Site "Lublin"]
[Date "2022.07.13"]
[Round "9.5"]
[White "Druckenthaner, Andreas"]
[Black "Zielinski, Olgierd"]
[Result "0-1"]
[ECO "B40"]
[WhiteElo "2272"]
[BlackElo "1816"]
[Annotator "ChessBase"]
[PlyCount "64"]
[EventDate "2022.07.05"]
[EventType "swiss"]
[EventCountry "POL"]
[SourceTitle "playchess.com"]
[Source "ChessBase"]
[SourceQuality "1"]
[TimeControl "40/5400+30:1800+30"]

1. e4 {[%emt 0:00:05]} c5 {[%emt 0:00:06]} 2. Nf3 {[%emt 0:00:08]} e6 {[%emt 0:00:08]} 3. d4 {[%emt 0:00:11]} cxd4 {[%emt 0:00:07]} 4. Bg5 {[%emt 0:00:06]} Nf6 {[%emt 0:02:42]} 5. e5 {[%emt 0:04:41]} h6 {[%emt 0:00:09]} 6. Bc1 {[%emt 0:02:12]} Nd5 {[%emt 0:02:46]} 7. Qxd4 {[%emt 0:00:43]} Nc6 {[%emt 0:00:13]} 8. Qe4 {[%emt 0:00:12]} d6 {[%emt 0:04:40]} 9. c4 {[%emt 0:05:10]} Ndb4 {[%emt 0:01:30]} 10. a3 {[%emt 0:03:57]} d5 {[%emt 0:01:17]} 11. Qe2 {[%emt 0:00:20]} Qa5 {[%emt 0:04:21]} 12. Nc3 {[%emt 0:12:24]} dxc4 {[%emt 0:01:29]} 13. Qe4 {[%emt 0:02:21]} Nd5 {[%emt 0:07:38]} 14. Bd2 {[%emt 0:01:44]} Nb6 {[%emt 0:05:38]} 15. Be2 {[%emt 0:03:23]} Nd7 {[%emt 0:03:00]} 16. Bf4 {[%emt 0:08:04]} g5 {[%emt 0:03:14]} 17. Bg3 {[%emt 0:04:34]} Bg7 {[%emt 0:00:15]} 18. O-O {[%emt 0:02:17]} Ndxe5 {[%emt 0:00:56]} 19. Nxe5 {[%emt 0:00:56]} Nxe5 {[%emt 0:00:12]} 20. b4 {[%emt 0:07:11]} cxb3 {[%emt 0:00:45]} 21. Nb5 {[%emt 0:06:47]} f5 {[%emt 0:01:31]} 22. Qe3 {[%emt 0:02:20]} f4 {[%emt 0:34:28]} 23. Qc5 {[%emt 0:02:21]} Kd8 {[%emt 0:00:32]} 24. Rac1 {[%emt 0:12:16]} Qb6 {[%emt 0:04:42]} 25. Qb4 {[%emt 0:03:02]} Bd7 {[%emt 0:06:30]} 26. Bxf4 {[%emt 0:03:43]} gxf4 {[%emt 0:00:21]} 27. Qxf4 {[%emt 0:00:08]} Bxb5 {[%emt 0:08:22]} 28. Rfd1+ {[%emt 0:04:11]} Bd7 {[%emt 0:00:44]} 29. Qh4+ {[%emt 0:00:53]} Ke8 {[%emt 0:00:19]} 30. Bh5+ {[%emt 0:00:58]} Kf8 {[%emt 0:01:15]} 31. Qf4+ {[%emt 0:01:11]} Ke7 {[%emt 0:00:32]} 32. Rxd7+ {[%emt 0:00:44]} Kxd7 {[%emt 0:00:49]} 0-1

[Event "ESCC-50 2022"]
[Site "Lublin"]
[Date "2022.07.13"]
[Round "9.6"]
[White "Padrak, Rafal"]
[Black "Warnk, Torsten"]
[Result "1/2-1/2"]
[ECO "D37"]
[WhiteElo "2125"]
[BlackElo "1763"]
[Annotator "ChessBase"]
[PlyCount "31"]
[EventDate "2022.07.05"]
[EventType "swiss"]
[EventCountry "POL"]
[SourceTitle "playchess.com"]
[Source "ChessBase"]
[SourceQuality "1"]
[TimeControl "40/5400+30:1800+30"]

1. d4 {[%emt 0:00:13]} d5 {[%emt 0:00:05]} 2. c4 {[%emt 0:00:07]} e6 {[%emt 0:00:29]} 3. Nc3 {[%emt 0:00:09]} Nf6 {[%emt 0:00:09]} 4. Nf3 {[%emt 0:00:43]} Be7 {[%emt 0:01:49]} 5. cxd5 {[%emt 0:00:35]} exd5 {[%emt 0:01:05]} 6. Bg5 {[%emt 0:00:06]} O-O {[%emt 0:00:25]} 7. e3 {[%emt 0:00:06]} c6 {[%emt 0:01:23]} 8. Bd3 {[%emt 0:00:07]} h6 {[%emt 0:04:10]} 9. Bh4 {[%emt 0:00:06]} Re8 {[%emt 0:01:01]} 10. O-O {[%emt 0:00:14]} Ne4 {[%emt 0:04:19]} 11. Bxe7 {[%emt 0:03:05]} Qxe7 {[%emt 0:03:26]} 12. Ne5 {[%emt 0:05:49]} Nd7 {[%emt 0:02:43]} 13. Nxd7 {[%emt 0:12:25]} Qxd7 {[%emt 0:00:51]} 14. Bxe4 {[%emt 0:16:08]} dxe4 {[%emt 0:00:23]} 15. Qc2 {[%emt 0:01:21]} Qf5 {[%emt 0:06:07]} 16. Rad1 {[%emt 0:03:58]} 1/2-1/2

[Event "ESCC-50 2022"]
[Site "Lublin"]
[Date "2022.07.13"]
[Round "9.7"]
[White "Kirszenberg, Marc"]
[Black "Baliuniene, Margarita"]
[Result "1/2-1/2"]
[ECO "D35"]
[WhiteElo "2056"]
[BlackElo "1935"]
[Annotator "ChessBase"]
[PlyCount "25"]
[EventDate "2022.07.05"]
[EventType "swiss"]
[EventCountry "POL"]
[SourceTitle "playchess.com"]
[Source "ChessBase"]
[SourceQuality "1"]
[TimeControl "40/5400+30:1800+30"]

1. d4 {[%emt 0:00:03]} d5 {[%emt 0:00:04]} 2. c4 {[%emt 0:00:04]} e6 {[%emt 0:00:07]} 3. Nc3 {[%emt 0:00:05]} Nf6 {[%emt 0:00:08]} 4. cxd5 {[%emt 0:00:04]} exd5 {[%emt 0:00:06]} 5. Bg5 {[%emt 0:00:06]} Be7 {[%emt 0:00:48]} 6. e3 {[%emt 0:00:14]} c6 {[%emt 0:00:25]} 7. Qc2 {[%emt 0:00:05]} a5 {[%emt 0:00:56]} 8. Bd3 {[%emt 0:00:15]} h6 {[%emt 0:00:15]} 9. Bh4 {[%emt 0:00:05]} Na6 {[%emt 0:00:23]} 10. a3 {[%emt 0:00:04]} O-O {[%emt 0:00:43]} 11. Nf3 {[%emt 0:00:06]} Be6 {[%emt 0:02:21]} 12. O-O {[%emt 0:00:24]} Nd7 {[%emt 0:04:42]} 13. Bxe7 {[%emt 0:02:56]} 1/2-1/2

[Event "ESCC-50 2022"]
[Site "Lublin"]
[Date "2022.07.13"]
[Round "9.8"]
[White "Krzyzanowska-Zadlo, Lidia"]
[Black "Pietinen, Pekka"]
[Result "1/2-1/2"]
[ECO "C06"]
[WhiteElo "1732"]
[BlackElo "1937"]
[Annotator "ChessBase"]
[PlyCount "88"]
[EventDate "2022.07.05"]
[EventType "swiss"]
[EventCountry "POL"]
[SourceTitle "playchess.com"]
[Source "ChessBase"]
[SourceQuality "1"]
[TimeControl "40/5400+30:1800+30"]

1. e4 {[%emt 0:00:19]} e6 {[%emt 0:00:23]} 2. d4 {[%emt 0:00:28]} d5 {[%emt 0:00:14]} 3. Nd2 {[%emt 0:00:42]} Nf6 {[%emt 0:02:04]} 4. e5 {[%emt 0:01:08]} Nfd7 {[%emt 0:00:11]} 5. Bd3 {[%emt 0:00:38]} c5 {[%emt 0:00:56]} 6. c3 {[%emt 0:00:13]} Nc6 {[%emt 0:01:20]} 7. Ne2 {[%emt 0:00:20]} cxd4 {[%emt 0:05:17]} 8. cxd4 {[%emt 0:00:10]} Qb6 {[%emt 0:00:57]} 9. Nf3 {[%emt 0:00:59]} Bb4+ {[%emt 0:01:19]} 10. Bd2 {[%emt 0:00:19]} Be7 {[%emt 0:00:23]} 11. b3 {[%emt 0:07:04]} Ba3 {[%emt 0:04:13]} 12. Bc1 {[%emt 0:11:08]} Qa5+ {[%emt 0:03:32]} 13. Bd2 {[%emt 0:09:16]} Nb4 {[%emt 0:06:11]} 14. O-O {[%emt 0:02:16]} Qb6 {[%emt 0:00:24]} 15. Bc1 {[%emt 0:03:45]} Bxc1 {[%emt 0:05:41]} 16. Nxc1 {[%emt 0:02:50]} Nxd3 {[%emt 0:00:14]} 17. Nxd3 {[%emt 0:01:45]} Qd8 {[%emt 0:01:28]} 18. Rc1 {[%emt 0:00:41]} Nf8 {[%emt 0:08:13]} 19. Qd2 {[%emt 0:03:50]} Ng6 {[%emt 0:01:25]} 20. g3 {[%emt 0:10:39]} Bd7 {[%emt 0:05:50]} 21. Qb4 {[%emt 0:06:28]} Bc6 {[%emt 0:07:06]} 22. Rfe1 {[%emt 0:03:08]} Qe7 {[%emt 0:03:23]} 23. a4 {[%emt 0:07:06]} h6 {[%emt 0:04:56]} 24. Nc5 {[%emt 0:03:56]} O-O {[%emt 0:02:22]} 25. Rc3 {[%emt 0:02:28]} a5 {[%emt 0:04:09]} 26. Qb6 {[%emt 0:01:22]} Qd8 {[%emt 0:00:36]} 27. Qxd8 {[%emt 0:00:25]} Rfxd8 {[%emt 0:00:07]} 28. Rec1 {[%emt 0:00:31]} Kf8 {[%emt 0:02:44]} 29. h4 {[%emt 0:01:32]} Ne7 {[%emt 0:03:05]} 30. Kg2 {[%emt 0:02:34]} Ke8 {[%emt 0:00:47]} 31. g4 {[%emt 0:00:28]} Rdc8 {[%emt 0:04:08]} 32. Kg3 {[%emt 0:03:34]} b6 {[%emt 0:00:27]} 33. Nd3 {[%emt 0:00:29]} Bb7 {[%emt 0:00:27]} 34. Rxc8+ {[%emt 0:01:14]} Rxc8 {[%emt 0:00:06]} 35. Rxc8+ {[%emt 0:00:25]} Bxc8 {[%emt 0:00:06]} 36. Kf4 {[%emt 0:00:26]} Ba6 {[%emt 0:01:02]} 37. Ke3 {[%emt 0:01:28]} Nc6 {[%emt 0:07:13]} 38. Nfe1 {[%emt 0:00:35]} Ke7 {[%emt 0:02:13]} 39. f4 {[%emt 0:06:13]} Bxd3 {[%emt 0:02:24]} 40. Nxd3 {[%emt 0:00:00]} g6 {[%emt 0:00:00]} 41. Nc1 {[%emt 0:07:04]} Kf8 {[%emt 0:02:27]} 42. Ne2 {[%emt 0:00:36]} Kg7 {[%emt 0:01:30]} 43. Ng3 {[%emt 0:03:26]} Ne7 {[%emt 0:04:24]} 44. h5 {[%emt 0:04:56]} Kh7 {[%emt 0:08:53]} 1/2-1/2

[Event "ESCC-50 2022"]
[Site "Lublin"]
[Date "2022.07.13"]
[Round "9.9"]
[White "Babijczuk, Wojciech"]
[Black "Puroila, Sippo"]
[Result "0-1"]
[ECO "B03"]
[WhiteElo "1436"]
[BlackElo "1803"]
[Annotator "NA"]
[PlyCount "120"]
[EventDate "2022.07.05"]
[EventType "swiss"]
[EventCountry "POL"]
[SourceTitle "playchess.com"]
[Source "ChessBase"]
[SourceQuality "1"]
[TimeControl "40/5400+30:1800+30"]

1. e4 {[%emt 0:00:03]} Nf6 {[%emt 0:00:09]} 2. e5 {[%emt 0:00:07]} Nd5 {[%emt 0:00:07]} 3. c4 {[%emt 0:00:48]} Nb6 {[%emt 0:00:08]} 4. d4 {[%emt 0:00:28]} d6 {[%emt 0:00:08]} 5. f4 {[%emt 0:00:40]} g6 {[%emt 0:00:08]} 6. b3 {[%emt 0:00:47]} Bg7 {[%emt 0:00:08]} 7. Nf3 {[%emt 0:00:39]} O-O {[%emt 0:00:11]} 8. Be3 {[%emt 0:02:05]} dxe5 {[%emt 0:00:24]} 9. fxe5 {[%emt 0:00:17]} Nc6 {[%emt 0:00:10]} 10. Be2 {[%emt 0:00:57]} Bg4 {[%emt 0:00:28]} 11. h3 {[%emt 0:00:14]} Bxf3 {[%emt 0:01:08]} 12. Bxf3 {[%emt 0:01:52]} f6 {[%emt 0:00:22]} 13. e6 {[%emt 0:04:20]} f5 {[%emt 0:03:20]} 14. Bxc6 {[%emt 0:00:40]} bxc6 {[%emt 0:00:15]} 15. Na3 {[%emt 0:04:52]} Qc8 {[%emt 0:01:35]} 16. O-O {[%emt 0:08:06]} Qxe6 {[%emt 0:00:10]} 17. Qe1 {[%emt 0:03:27]} Rad8 {[%emt 0:05:51]} 18. Rd1 {[%emt 0:00:57]} Rd7 {[%emt 0:02:43]} 19. Qf2 {[%emt 0:00:19]} Rfd8 {[%emt 0:01:27]} 20. Rfe1 {[%emt 0:01:30]} Qf6 {[%emt 0:00:47]} 21. Nc2 {[%emt 0:00:31]} g5 {[%emt 0:04:03]} 22. g3 {[%emt 0:03:11]} Qg6 {[%emt 0:00:45]} 23. Kh2 {[%emt 0:00:55]} e5 {[%emt 0:00:21]} 24. Rg1 {[%emt 0:04:52]} exd4 {[%emt 0:05:08]} 25. Bxd4 {[%emt 0:01:58]} Bxd4 {[%emt 0:00:23]} 26. Rxd4 {[%emt 0:00:58]} Qf6 {[%emt 0:17:05]} 27. Rxd7 {[%emt 0:01:15]} Rxd7 {[%emt 0:00:03]} 28. Rg2 {[%emt 0:02:15]} Kg7 {[%emt 0:00:15]} 29. Ne3 {[%emt 0:03:05]} Kg6 {[%emt 0:00:15]} 30. Qc2 {[%emt 0:01:20]} Re7 {[%emt 0:00:41]} 31. Nf1 {[%emt 0:06:50]} Qe5 {[%emt 0:07:14]} 32. Rf2 {[%emt 0:01:57]} Nd7 {[%emt 0:01:49]} 33. b4 {[%emt 0:02:20]} Qe4 {[%emt 0:00:43]} 34. Qb3 {[%emt 0:06:26]} Ne5 {[%emt 0:00:23]} 35. c5 {[%emt 0:04:24]} g4 {[%emt 0:02:43]} 36. Qg8+ {[%emt 0:00:49]} Kh5 {[%emt 0:02:26]} 37. Nd2 {[%emt 0:02:09]} Nf3+ {[%emt 0:03:15]} 38. Nxf3 {[%emt 0:01:08]} gxf3 {[%emt 0:00:09]} 39. h4 {[%emt 0:00:44]} Qg4 {[%emt 0:01:07]} 40. Qd8 {[%emt 0:00:00]} f4 {[%emt 0:00:00]} 41. Qxe7 {[%emt 0:19:28]} fxg3+ {[%emt 0:07:04]} 42. Kg1 {[%emt 0:00:58]} gxf2+ {[%emt 0:00:13]} 43. Kxf2 {[%emt 0:00:13]} Qg2+ {[%emt 0:00:19]} 44. Ke1 {[%emt 0:02:04]} Qe2+ {[%emt 0:00:07]} 45. Qxe2 fxe2 46. Kxe2 {[%emt 0:01:07]} Kxh4 {[%emt 0:00:38]} 47. Kf3 {[%emt 0:00:42]} Kg5 {[%emt 0:00:04]} 48. a4 {[%emt 0:00:28]} a6 {[%emt 0:00:09]} 49. Ke4 {[%emt 0:00:53]} Kf6 {[%emt 0:00:03]} 50. Kf4 {[%emt 0:00:54]} Ke6 {[%emt 0:00:05]} 51. Ke4 {[%emt 0:00:25]} h5 {[%emt 0:00:02]} 52. Kf4 {[%emt 0:00:32]} Kd5 {[%emt 0:00:03]} 53. Kg5 {[%emt 0:00:42]} Kc4 {[%emt 0:00:03]} 54. Kxh5 {[%emt 0:00:21]} Kxb4 {[%emt 0:00:07]} 55. Kg5 {[%emt 0:00:26]} Kxc5 {[%emt 0:00:09]} 56. Kf4 {[%emt 0:00:07]} Kb4 {[%emt 0:00:14]} 57. Ke4 {[%emt 0:00:29]} Kxa4 {[%emt 0:00:10]} 58. Kd4 {[%emt 0:00:14]} Kb4 {[%emt 0:00:07]} 59. Kd3 c5 60. Kc2 {[%emt 0:00:58]} c4 {[%emt 0:00:38]} 0-1